lending/lending_fUSD_20241229
["ID","MTS","AMOUNT","RATE_DAILY","PERIOD"]
[347076487,1735489922663,-1605.45,0.00015102,2]
[347076488,1735489922672,-1291.66,0.00015103,2]
[347076489,1735489922681,-1926.58,0.00015103,2]
[347076490,1735489922690,-4336.05,0.00015103,2]
[347076491,1735489922700,-5033.79,0.00015103,2]
[347076492,1735489922709,-564.3,0.00015138,2]
[347076493,1735489922719,-152.0,0.0001519,11]
[347076494,1735489922729,-569.72606458,0.00015192,2]
[347076495,1735489922738,-3793.0,0.00015192,2]
[347076496,1735489922748,-2241.0,0.00015192,2]
[347076497,1735489922758,-17492.91945638,0.000152,2]
[347076498,1735489922772,-3000.0,0.0001522,2]
[347076499,1735489922782,-3000.0,0.0001522,2]
[347076500,1735489922791,-3000.0,0.0001522,2]
[347076501,1735489922802,-3000.0,0.0001522,2]
[347076502,1735489922811,-3000.0,0.0001522,2]
[347076503,1735489922820,-1311.85,0.0001522,2]
[347076504,1735489922831,-150.0,0.00015225,2]
[347076505,1735489922842,-150.0,0.00015234,2]
[347076506,1735489922852,-1224.42110073,0.00015235,2]
[347076507,1735489922862,-1500.0,0.00015248,2]
[347076508,1735489922872,-1500.0,0.00015248,2]
[347076509,1735489922882,-1500.0,0.00015248,2]
[347076510,1735489922892,-1500.0,0.00015248,2]
[347076511,1735489922902,-1300.0,0.00015273,2]
[347076512,1735489922913,-510.97,0.00015274,2]
[347076513,1735489922923,-1306.56,0.00015274,2]
[347076514,1735489922933,-968.82,0.00015274,2]
[347076515,1735489922943,-1952.26,0.00015274,2]
[347076516,1735489922952,-1407.8,0.00015274,2]
[347076517,1735489922961,-1583.19,0.00015274,2]
[347076518,1735489922971,-1048.33,0.00015274,2]
[347076519,1735489922980,-900.45,0.00015274,2]
[347076520,1735489922990,-669.37,0.00015274,2]
[347076521,1735489923000,-1013.65,0.00015274,2]
[347076522,1735489923009,-1333.84,0.00015274,2]
[347076523,1735489923019,-701.57,0.00015274,2]
[347076524,1735489923028,-616.81,0.00015274,2]
[347076525,1735489923038,-1458.91,0.00015274,2]
[347076526,1735489923048,-1791.59,0.00015274,2]
[347076527,1735489923057,-500.0,0.00015274,2]
[347076528,1735489923067,-500.0,0.00015274,2]
[347076529,1735489923078,-500.0,0.00015274,2]
[347076530,1735489923087,-500.0,0.00015274,2]
[347076531,1735489923097,-887.59,0.00015274,2]
[347076532,1735489923108,-2024.5,0.00015274,2]
[347076533,1735489923118,-1199.76,0.00015274,2]
[347076534,1735489923127,-1139.1,0.00015274,2]
[347076535,1735489923137,-500.0,0.00015274,2]
[347076536,1735489923147,-1849.25,0.00015274,2]
[347076537,1735489923157,-834.81,0.00015274,2]
[347076538,1735489923168,-1070.95,0.00015274,2]
[347076539,1735489923177,-500.0,0.00015274,2]
[347076540,1735489923187,-936.54,0.00015274,2]
[347076541,1735489923197,-2044.8,0.00015274,2]
[347076542,1735489923207,-1357.53,0.00015274,2]
[347076543,1735489923217,-852.21,0.00015274,2]
[347076544,1735489923227,-664.74,0.00015274,2]
[347076545,1735489923237,-2081.2,0.00015274,2]
[347076546,1735489923247,-500.0,0.00015274,2]
[347076547,1735489923256,-1193.34,0.00015274,2]
[347076548,1735489923265,-1949.38,0.00015274,2]
[347076549,1735489923276,-1499.21,0.00015274,2]
[347076550,1735489923285,-957.19,0.00015274,2]
[347076551,1735489923295,-1086.74,0.00015274,2]
[347076552,1735489923305,-1671.48,0.00015274,2]
[347076553,1735489923316,-1109.88,0.00015274,2]
[347076554,1735489923327,-1401.41,0.00015274,2]
[347076555,1735489923336,-2210.72,0.00015274,2]
[347076556,1735489923346,-2145.94,0.00015274,2]
[347076557,1735489923356,-2179.71,0.00015274,2]
[347076558,1735489923366,-1629.52,0.00015275,2]
[347076559,1735489923376,-1138.87,0.00015275,2]
[347076560,1735489923386,-526.0,0.00015275,2]
[347076561,1735489923396,-872.22,0.00015275,2]
[347076562,1735489923406,-1239.13,0.00015275,2]
[347076563,1735489923415,-947.43,0.00015275,2]
[347076564,1735489923426,-1354.94,0.00015275,2]
[347076565,1735489923435,-1847.85,0.00015275,2]
[347076566,1735489923444,-2077.72,0.00015275,2]
[347076567,1735489923454,-885.81,0.00015275,2]
[347076568,1735489923464,-1258.17,0.00015275,2]
[347076569,1735489923475,-1096.6,0.00015275,2]
[347076570,1735489923485,-1647.5,0.00015275,2]
[347076571,1735489923494,-936.49,0.00015275,2]
[347076572,1735489923503,-1965.02,0.00015275,2]
[347076573,1735489923514,-1270.11,0.00015275,2]
[347076574,1735489923523,-735.69,0.00015275,2]
[347076575,1735489923533,-1915.81,0.00015275,2]
[347076576,1735489923543,-1704.31,0.00015275,2]
[347076577,1735489923553,-601.41,0.00015275,2]
[347076578,1735489923564,-842.62,0.00015275,2]
[347076579,1735489923574,-917.37,0.00015275,2]
[347076580,1735489923584,-1178.93,0.00015275,2]
[347076581,1735489923594,-1187.17,0.00015275,2]
[347076582,1735489923603,-857.11,0.00015275,2]
[347076583,1735489923613,-564.3,0.00015275,2]
[347076584,1735489923623,-637.8,0.00015275,2]
[347076585,1735489923634,-1174.42,0.00015275,2]
[347076586,1735489923643,-1426.37,0.00015275,2]
[347076587,1735489923654,-591.13,0.00015275,2]
[347076588,1735489923664,-901.33,0.00015275,2]
[347076589,1735489923674,-500.0,0.00015275,2]
[347076590,1735489923685,-2098.83,0.00015275,2]
[347076591,1735489923695,-896.49,0.00015275,2]
[347076592,1735489923706,-794.28,0.00015275,2]
[347076593,1735489923715,-1070.04,0.00015275,2]
[347076594,1735489923725,-987.86,0.00015275,2]
[347076595,1735489923736,-1547.13,0.00015275,2]
[347076596,1735489923747,-676.15,0.00015275,2]
[347076597,1735489923757,-1819.79,0.00015275,2]
[347076598,1735489923772,-1109.01,0.00015275,2]
[347076599,1735489923782,-1601.3,0.00015275,2]
[347076600,1735489923791,-1018.37,0.00015275,2]
[347076601,1735489923803,-1282.75,0.00015275,2]
[347076602,1735489923813,-1716.82,0.00015275,2]
[347076603,1735489923827,-1084.55,0.00015275,2]
[347076604,1735489923839,-936.71,0.00015275,2]
[347076605,1735489923850,-712.64,0.00015275,2]
[347076606,1735489923861,-837.44,0.00015275,2]
[347076607,1735489923872,-1790.34,0.00015275,2]
[347076608,1735489923883,-966.27,0.00015275,2]
[347076609,1735489923894,-702.86,0.00015275,2]
[347076610,1735489923903,-1154.03,0.00015275,2]
[347076611,1735489923914,-911.82,0.00015275,2]
[347076612,1735489923924,-786.78,0.00015275,2]
[347076613,1735489923934,-991.76,0.00015275,2]
[347076614,1735489923944,-1789.48,0.00015275,2]
[347076615,1735489923955,-500.0,0.00015275,2]
[347076616,1735489923965,-538.54,0.00015275,2]
[347076617,1735489923975,-918.79,0.00015275,2]
[347076618,1735489923985,-743.62,0.00015275,2]
[347076619,1735489923995,-528.78,0.00015275,2]
[347076620,1735489924004,-1250.82,0.00015275,2]
[347076621,1735489924014,-871.83,0.00015275,2]
[347076622,1735489924025,-2412.7,0.00015275,2]
[347076623,1735489924035,-1819.03,0.00015275,2]
[347076624,1735489924044,-2491.36,0.00015275,2]
[347076625,1735489924054,-143591.53,0.00015293,7]
[347076626,1735489924064,-68177.73,0.00015293,7]
[347076627,1735489924074,-31118.79,0.00015293,7]
[347076628,1735489924083,-35022.79,0.00015293,7]
[347076629,1735489924093,-11525.35,0.00015293,7]
[347076630,1735489924104,-27103.92,0.00015293,7]
[347076631,1735489924114,-25192.62,0.00015293,7]
[347076632,1735489924124,-34545.78,0.00015293,7]
[347076633,1735489924133,-1517.64,0.000153,2]
[347076634,1735489924143,-20265.52,0.0001531,2]
[347076635,1735489924154,-1805.92,0.00015372,2]
[347076636,1735489924164,-5215.12,0.00015372,2]
[347076637,1735489924174,-2890.03,0.00015372,2]
[347076638,1735489924185,-4902.25,0.00015372,2]
[347076639,1735489924194,-500.0,0.00015372,2]
[347076640,1735489924205,-1801.91,0.00015372,2]
[347076641,1735489924215,-3264.87,0.00015372,2]
[347076642,1735489924225,-1526.95,0.00015372,2]
[347076643,1735489924235,-793.71,0.00015372,2]
[347076644,1735489924245,-4566.76,0.00015372,2]
[347076645,1735489924255,-1940.64,0.00015372,2]
[347076646,1735489924266,-1046.88,0.00015372,2]
[347076647,1735489924276,-17156.74,0.00015372,2]
[347076648,1735489924286,-10143.96,0.00015372,2]
[347076649,1735489924296,-4108.35,0.00015372,2]
[347076650,1735489924306,-2730.04,0.00015372,2]
[347076651,1735489924316,-2556.02,0.00015372,2]
[347076652,1735489924330,-1530.31,0.00015372,2]
[347076653,1735489924342,-6586.15,0.00015372,2]
[347076654,1735489924352,-4366.33,0.00015372,2]
[347076655,1735489924362,-681.34,0.00015372,2]
[347076656,1735489924372,-701.38,0.00015372,2]
[347076657,1735489924381,-2019.15,0.00015372,2]
[347076658,1735489924392,-500.0,0.00015372,2]
[347076659,1735489924403,-1697.84,0.00015372,2]
[347076660,1735489924414,-3038.02,0.00015372,2]
[347076661,1735489924424,-852.73,0.00015372,2]
[347076662,1735489924435,-1431.9,0.00015372,2]
[347076663,1735489924445,-500.0,0.00015372,2]
[347076664,1735489924455,-580.22,0.00015373,2]
[347076665,1735489924466,-1469.79,0.00015373,2]
[347076666,1735489924476,-1662.07,0.00015373,2]
[347076667,1735489924487,-500.0,0.00015373,2]
[347076668,1735489924497,-1592.56,0.00015373,2]
[347076669,1735489924506,-643.7,0.00015373,2]
[347076670,1735489924516,-3558.18,0.00015373,2]
[347076671,1735489924527,-988.16,0.00015373,2]
[347076672,1735489924537,-1652.5,0.00015373,2]
[347076673,1735489924548,-517.89,0.00015373,2]
[347076674,1735489924557,-900.7,0.00015373,2]
[347076675,1735489924567,-674.01,0.00015373,2]
[347076676,1735489924579,-5047.81,0.00015373,2]
[347076677,1735489924589,-500.0,0.00015373,2]
[347076678,1735489924598,-531.9,0.00015373,2]
[347076679,1735489924609,-603.5,0.00015373,2]
[347076680,1735489924619,-1051.42,0.00015373,2]
[347076681,1735489924630,-1024.0,0.00015373,2]
[347076682,1735489924640,-833.89,0.00015373,2]
[347076683,1735489924650,-1151.35,0.00015373,2]
[347076684,1735489924661,-756.97,0.00015373,2]
[347076685,1735489924671,-4647.61,0.00015373,2]
[347076686,1735489924681,-500.0,0.00015373,2]
[347076687,1735489924691,-500.0,0.00015373,2]
[347076688,1735489924701,-500.0,0.00015373,2]
[347076689,1735489924711,-3472.39,0.00015373,2]
[347076690,1735489924722,-500.0,0.00015373,2]
[347076691,1735489924732,-1011.11,0.00015373,2]
[347076692,1735489924742,-2584.04,0.00015373,2]
[347076693,1735489924751,-2630.44,0.00015373,2]
[347076694,1735489924762,-1068.1,0.00015373,2]
[347076695,1735489924774,-1103.17,0.00015373,2]
[347076696,1735489924784,-1002.9,0.00015373,2]
[347076697,1735489924794,-18294.83,0.00015373,2]
[347076698,1735489924805,-3065.29,0.00015373,2]
[347076699,1735489924815,-1272.65,0.00015373,2]
[347076700,1735489924826,-2185.03,0.00015373,2]
[347076701,1735489924836,-9894.2,0.00015373,2]
[347076702,1735489924849,-500.0,0.00015373,2]
[347076703,1735489924860,-1886.48,0.00015373,2]
[347076704,1735489924870,-3029.99,0.00015373,2]
[347076705,1735489924880,-6076.11,0.00015373,2]
[347076706,1735489924889,-1453.24,0.00015373,2]
[347076707,1735489924900,-1635.32,0.00015373,2]
[347076708,1735489924910,-1542.14,0.00015373,2]
[347076709,1735489924920,-1891.39,0.00015373,2]
[347076710,1735489924929,-3536.31,0.00015373,2]
[347076711,1735489924939,-1072.15,0.00015373,2]
[347076712,1735489924949,-500.0,0.00015373,2]
[347076713,1735489924959,-839.13,0.00015373,2]
[347076714,1735489924969,-1665.61,0.00015373,2]
[347076715,1735489924979,-500.0,0.00015373,2]
[347076716,1735489924989,-11603.09,0.00015373,2]
[347076717,1735489924999,-1447.4,0.00015373,2]
[347076718,1735489925008,-789.12,0.00015374,2]
[347076719,1735489925018,-500.0,0.00015374,2]
[347076720,1735489925027,-640.3,0.00015374,2]
[347076721,1735489925037,-682.07,0.00015374,2]
[347076722,1735489925047,-500.0,0.00015374,2]
[347076723,1735489925056,-500.0,0.00015374,2]
[347076724,1735489925066,-742.88,0.00015374,2]
[347076725,1735489925077,-500.0,0.00015374,2]
[347076726,1735489925087,-578.48,0.00015374,2]
[347076727,1735489925097,-969.72,0.00015374,2]
[347076728,1735489925107,-766.29,0.00015374,2]
[347076729,1735489925116,-500.0,0.00015374,2]
[347076730,1735489925126,-500.0,0.00015374,2]
[347076731,1735489925136,-500.0,0.00015374,2]
[347076732,1735489925145,-500.0,0.00015374,2]
[347076733,1735489925155,-950.22,0.00015374,2]
[347076734,1735489925164,-500.0,0.00015374,2]
[347076735,1735489925174,-500.0,0.00015374,2]
[347076736,1735489925183,-500.0,0.00015374,2]
[347076737,1735489925193,-912.48,0.00015374,2]
[347076738,1735489925203,-500.0,0.00015374,2]
[347076739,1735489925213,-661.25,0.00015374,2]
[347076740,1735489925222,-500.0,0.00015374,2]
[347076741,1735489925233,-500.0,0.00015374,2]
[347076742,1735489925243,-500.0,0.00015374,2]
[347076743,1735489925253,-1210.33,0.00015374,2]
[347076744,1735489925263,-500.0,0.00015374,2]
[347076745,1735489925273,-500.0,0.00015374,2]
[347076746,1735489925282,-502.31,0.00015374,2]
[347076747,1735489925292,-500.0,0.00015374,2]
[347076748,1735489925302,-500.0,0.00015374,2]
[347076749,1735489925313,-500.0,0.00015374,2]
[347076750,1735489925322,-644.59,0.00015374,2]
[347076751,1735489925332,-500.0,0.00015374,2]
[347076752,1735489925342,-1137.54,0.00015374,2]
[347076753,1735489925352,-500.0,0.00015374,2]
[347076754,1735489925362,-814.21,0.00015374,2]
[347076755,1735489925372,-500.0,0.00015374,2]
[347076756,1735489925382,-717.64,0.00015374,2]
[347076757,1735489925392,-1253.64,0.00015374,2]
[347076758,1735489925402,-500.0,0.00015374,2]
[347076759,1735489925412,-508.54,0.00015374,2]
[347076760,1735489925423,-500.0,0.00015374,2]
[347076761,1735489925433,-500.0,0.00015374,2]
[347076762,1735489925443,-1130.46,0.00015374,2]
[347076763,1735489925453,-623.05,0.00015374,2]
[347076764,1735489925463,-500.0,0.00015374,2]
[347076765,1735489925473,-913.53,0.00015374,2]
[347076766,1735489925483,-1090.0,0.00015374,2]
[347076767,1735489925494,-605.54,0.00015374,2]
[347076768,1735489925504,-500.0,0.00015374,2]
[347076769,1735489925515,-626.31,0.00015374,2]
[347076770,1735489925525,-500.0,0.00015374,2]
[347076771,1735489925535,-517.37,0.00015374,2]
[347076772,1735489925545,-500.0,0.00015374,2]
[347076773,1735489925555,-500.0,0.00015374,2]
[347076774,1735489925565,-687.05,0.00015374,2]
[347076775,1735489925576,-500.0,0.00015374,2]
[347076776,1735489925585,-549.65,0.00015374,2]
[347076777,1735489925596,-853.21,0.00015374,2]
[347076778,1735489925606,-500.0,0.00015374,2]
[347076779,1735489925616,-500.0,0.00015374,2]
[347076780,1735489925626,-529.86,0.00015374,2]
[347076781,1735489925636,-725.9,0.00015374,2]
[347076782,1735489925647,-167.64732514,0.00015374,2]
[347076783,1735489925657,-1263.22,0.00015374,2]
[347076784,1735489925666,-500.0,0.00015374,2]
[347076785,1735489925679,-920.97,0.00015374,2]
[347076786,1735489925689,-500.0,0.00015374,2]
[347076787,1735489925699,-1244.8,0.00015374,2]
[347076788,1735489925709,-784.27,0.00015374,2]
[347076789,1735489925718,-700.7,0.00015374,2]
[347076790,1735489925728,-503.37,0.00015374,2]
[347076791,1735489925738,-896.25,0.00015374,2]
[347076792,1735489925748,-1160.49,0.00015374,2]
[347076793,1735489925758,-500.0,0.00015374,2]
[347076794,1735489925772,-573.61,0.00015374,2]
[347076795,1735489925782,-500.0,0.00015374,2]
[347076796,1735489925792,-500.0,0.00015374,2]
[347076797,1735489925802,-1348.21,0.00015374,2]
[347076798,1735489925814,-334.60291747,0.00015374,2]
[347076799,1735489925825,-500.0,0.00015374,2]
[347076800,1735489925837,-548.05,0.00015374,2]
[347076801,1735489925847,-500.0,0.00015374,2]
[347076802,1735489925858,-707.32,0.00015374,2]
[347076803,1735489925868,-500.0,0.00015374,2]
[347076804,1735489925879,-500.0,0.00015374,2]
[347076805,1735489925889,-761.45,0.00015374,2]
[347076806,1735489925899,-515.67,0.00015374,2]
[347076807,1735489925910,-500.0,0.00015374,2]
[347076808,1735489925920,-655.36,0.00015374,2]
[347076809,1735489925931,-1111.12,0.00015374,2]
[347076810,1735489925942,-504.53,0.00015374,2]
[347076811,1735489925952,-939.99,0.00015374,2]
[347076812,1735489925962,-500.0,0.00015374,2]
[347076813,1735489925972,-670.09,0.00015374,2]
[347076814,1735489925983,-500.0,0.00015374,2]
[347076815,1735489925994,-500.0,0.00015374,2]
[347076816,1735489926004,-500.0,0.00015375,2]
[347076817,1735489926015,-362.32,0.00015375,2]
[347076818,1735489926024,-500.0,0.00015375,2]
[347076819,1735489926034,-635.03,0.00015375,2]
[347076820,1735489926044,-739.18,0.00015375,2]
[347076821,1735489926054,-1016.64,0.00015375,2]
[347076822,1735489926064,-3511.19,0.00015375,2]
[347076823,1735489926075,-831.8,0.00015375,2]
[347076824,1735489926085,-1944.21,0.00015375,2]
[347076825,1735489926095,-1205.91,0.00015375,2]
[347076826,1735489926105,-3599.17,0.00015375,2]
[347076827,1735489926115,-778.37,0.00015375,2]
[347076828,1735489926125,-764.39,0.00015375,2]
[347076829,1735489926135,-858.22,0.00015375,2]
[347076830,1735489926145,-1078.5,0.00015375,2]
[347076831,1735489926156,-500.0,0.00015375,2]
[347076832,1735489926166,-1053.53,0.00015375,2]
[347076833,1735489926176,-2340.55,0.00015375,2]
[347076834,1735489926188,-531.43,0.00015375,2]
[347076835,1735489926198,-433.9,0.00015375,2]
[347076836,1735489926208,-1041.24,0.00015375,2]
[347076837,1735489926218,-500.0,0.00015375,2]
[347076838,1735489926229,-3755.9,0.00015375,2]
[347076839,1735489926239,-500.0,0.00015375,2]
[347076840,1735489926249,-679.8,0.00015375,2]
[347076841,1735489926259,-3562.83,0.00015375,2]
[347076842,1735489926269,-500.0,0.00015375,2]
[347076843,1735489926280,-662.99,0.00015375,2]
[347076844,1735489926290,-530.53,0.00015375,2]
[347076845,1735489926300,-2528.19,0.00015375,2]
[347076846,1735489926311,-500.0,0.00015375,2]
[347076847,1735489926322,-676.14,0.00015375,2]
[347076848,1735489926332,-869.7,0.00015375,2]
[347076849,1735489926343,-885.94,0.00015375,2]
[347076850,1735489926552,-1387.4,0.00015375,2]
[347076851,1735489926564,-707.66,0.00015375,2]
[347076852,1735489926574,-1169.27,0.00015375,2]
[347076853,1735489926584,-6099.26,0.00015375,2]
[347076854,1735489926594,-732.6,0.00015375,2]
[347076855,1735489926604,-355.14,0.00015375,2]
[347076856,1735489926613,-1183.54,0.00015375,2]
[347076857,1735489926623,-555.13,0.00015375,2]
[347076858,1735489926634,-500.0,0.00015375,2]
[347076859,1735489926643,-500.0,0.00015375,2]
[347076860,1735489926653,-3945.51,0.00015375,2]
[347076861,1735489926663,-2075.97,0.00015375,2]
[347076862,1735489926673,-654.05,0.00015375,2]
[347076863,1735489926683,-1345.89,0.00015375,2]
[347076864,1735489926693,-1061.45,0.00015375,2]
[347076865,1735489926703,-14284.14,0.00015375,2]
[347076866,1735489926712,-1058.29,0.00015375,2]
[347076867,1735489926722,-500.0,0.00015375,2]
[347076868,1735489926731,-853.86,0.00015375,2]
[347076869,1735489926741,-10147.36,0.00015375,2]
[347076870,1735489926751,-1697.41,0.00015375,2]
[347076871,1735489926763,-1107.23,0.00015375,2]
[347076872,1735489926775,-547.58,0.00015375,2]
[347076873,1735489926784,-1236.84,0.00015375,2]
[347076874,1735489926794,-1403.26,0.00015375,2]
[347076875,1735489926804,-638.45,0.00015375,2]
[347076876,1735489926814,-954.3,0.00015375,2]
[347076877,1735489926825,-749.83,0.00015375,2]
[347076878,1735489926835,-1321.25,0.00015375,2]
[347076879,1735489926846,-3600.62,0.00015375,2]
[347076880,1735489926856,-750.79,0.00015375,2]
[347076881,1735489926867,-776.0,0.00015375,2]
[347076882,1735489926876,-2295.24,0.00015375,2]
[347076883,1735489926886,-743.69,0.00015375,2]
[347076884,1735489926896,-637.29,0.00015375,2]
[347076885,1735489926906,-528.46,0.00015375,2]
[347076886,1735489926915,-16509.04,0.00015375,2]
[347076887,1735489926925,-1355.28,0.00015375,2]
[347076888,1735489926935,-2104.69,0.00015375,2]
[347076889,1735489926945,-893.81,0.00015375,2]
[347076890,1735489926955,-773.78,0.00015375,2]
[347076891,1735489926964,-890.01,0.00015375,2]
[347076892,1735489926974,-1251.31,0.00015375,2]
[347076893,1735489926984,-500.0,0.00015375,2]
[347076894,1735489926994,-909.43,0.00015375,2]
[347076895,1735489927004,-538.15,0.00015375,2]
[347076896,1735489927014,-1051.79,0.00015375,2]
[347076897,1735489927024,-1988.73,0.00015375,2]
[347076898,1735489927034,-1184.67,0.00015375,2]
[347076899,1735489927043,-2308.07,0.00015375,2]
[347076900,1735489927053,-500.0,0.00015375,2]
[347076901,1735489927063,-705.54,0.00015375,2]
[347076902,1735489927073,-1060.41,0.00015375,2]
[347076903,1735489927083,-500.0,0.00015375,2]
[347076904,1735489927093,-2299.51,0.00015375,2]
[347076905,1735489927103,-851.46,0.00015375,2]
[347076906,1735489927112,-1853.38,0.00015375,2]
[347076907,1735489927122,-964.97,0.00015375,2]
[347076908,1735489927132,-1075.86,0.00015375,2]
[347076909,1735489927142,-500.0,0.00015375,2]
[347076910,1735489927152,-2115.26,0.00015375,2]
[347076911,1735489927162,-1352.22,0.00015375,2]
[347076912,1735489927172,-500.0,0.00015375,2]
[347076913,1735489927182,-639.4,0.00015375,2]
[347076914,1735489927192,-849.33,0.00015375,2]
[347076915,1735489927202,-3181.36,0.00015376,2]
[347076916,1735489927212,-6329.31,0.00015376,2]
[347076917,1735489927221,-3277.49,0.00015376,2]
[347076918,1735489927231,-12312.34,0.00015376,2]
[347076919,1735489927242,-3574.32,0.00015376,2]
[347076920,1735489927252,-3943.77,0.00015376,2]
[347076921,1735489927263,-3305.08,0.00015376,2]
[347076922,1735489927273,-739.21,0.00015376,2]
[347076923,1735489927283,-7280.0,0.00015376,2]
[347076924,1735489927293,-751.24,0.00015376,2]
[347076925,1735489927303,-2691.11,0.00015376,2]
[347076926,1735489927313,-2885.5,0.00015376,2]
[347076927,1735489927324,-2387.4,0.00015376,2]
[347076928,1735489927334,-4451.17,0.00015376,2]
[347076929,1735489927347,-2274.63,0.00015376,2]
[347076930,1735489927357,-922.86,0.00015376,2]
[347076931,1735489927367,-1156.67,0.00015376,2]
[347076932,1735489927377,-2396.52,0.00015376,2]
[347076933,1735489927387,-3499.32,0.00015376,2]
[347076934,1735489927396,-2481.53,0.00015376,2]
[347076935,1735489927406,-2018.38,0.00015376,2]
[347076936,1735489927416,-683.43,0.00015376,2]
[347076937,1735489927426,-5328.55,0.00015376,2]
[347076938,1735489927435,-2716.03,0.00015376,2]
[347076939,1735489927445,-3917.79,0.00015376,2]
[347076940,1735489927454,-45088.26,0.00015376,2]
[347076941,1735489927463,-1605.45,0.00015376,2]
[347076942,1735489927472,-1000.0,0.00015376,2]
[347076943,1735489927481,-1291.66,0.00015377,2]
[347076944,1735489927490,-1926.58,0.00015377,2]
[347076945,1735489927500,-4336.05,0.00015377,2]
[347076946,1735489927510,-5033.79,0.00015377,2]
[347076947,1735489927519,-150.0,0.00015397,2]
[347076948,1735489927529,-15932.39781943,0.000154,2]
[347076949,1735489927539,-484.52871102,0.000154,2]
[347076950,1735489927550,-10000.0,0.000154,10]
[347076951,1735489927560,-564.3,0.00015412,2]
[347076952,1735489927570,-152.0,0.00015417,12]
[347076953,1735489927581,-150.0,0.0001545,2]
[347076954,1735489927591,-3793.0,0.00015466,2]
[347076955,1735489927601,-2241.0,0.00015466,2]
[347076956,1735489927611,-150.0,0.00015545,2]
[347076957,1735489927622,-510.97,0.00015548,2]
[347076958,1735489927632,-1306.56,0.00015548,2]
[347076959,1735489927642,-968.82,0.00015548,2]
[347076960,1735489927653,-1952.26,0.00015548,2]
[347076961,1735489927664,-1407.8,0.00015548,2]
[347076962,1735489927674,-1583.19,0.00015548,2]
[347076963,1735489927683,-1048.33,0.00015548,2]
[347076964,1735489927693,-900.45,0.00015548,2]
[347076965,1735489927703,-669.37,0.00015548,2]
[347076966,1735489927713,-1013.65,0.00015548,2]
[347076967,1735489927723,-1333.84,0.00015548,2]
[347076968,1735489927733,-701.57,0.00015548,2]
[347076969,1735489927743,-616.81,0.00015548,2]
[347076970,1735489927752,-1458.91,0.00015548,2]
[347076971,1735489927764,-1791.59,0.00015548,2]
[347076972,1735489927775,-500.0,0.00015548,2]
[347076973,1735489927786,-500.0,0.00015548,2]
[347076974,1735489927796,-614.25909378,0.00015548,2]
[347076975,1735489927807,-500.0,0.00015548,2]
[347076976,1735489927816,-887.59,0.00015548,2]
[347076977,1735489927829,-2024.5,0.00015548,2]
[347076978,1735489927839,-1199.76,0.00015548,2]
[347076979,1735489927848,-1139.1,0.00015548,2]
[347076980,1735489927858,-537.6563724,0.00015548,2]
[347076981,1735489927868,-1849.25,0.00015548,2]
[347076982,1735489927878,-834.81,0.00015548,2]
[347076983,1735489927889,-1070.95,0.00015548,2]
[347076984,1735489927898,-500.0,0.00015548,2]
[347076985,1735489927908,-936.54,0.00015548,2]
[347076986,1735489927918,-2044.8,0.00015548,2]